bitfinex/quotes_SOLUSD_20250625
["timestamp","ask_amount","ask_price","bid_price","bid_amount"]
[1750885290274,11.34647658,145.11,145.06,13.41606703]
[1750885290439,5.14444828,145.1,145.06,13.41606703]
[1750885290638,5.14444828,145.09,145.06,13.41606703]
[1750885290836,11.34647658,145.11,145.06,13.41606703]
[1750885291034,5.14914013,145.1,145.06,13.41606703]
[1750885291348,5.14914013,145.09,145.06,13.41606703]
[1750885291662,11.34647658,145.11,145.06,13.41606703]
[1750885291950,5.15191435,145.1,145.06,13.41606703]
[1750885292126,5.15191435,145.09,145.06,13.41606703]
[1750885292329,11.34647658,145.11,145.06,13.41606703]
[1750885292330,11.34647658,145.11,145.06,6.89369915]
[1750885292527,5.15477224,145.1,145.06,13.41606703]
[1750885292728,5.15477224,145.09,145.06,13.41606703]
[1750885292929,12.81795951,145.12,145.08,18.64964886]
[1750885293130,5.15476871,145.11,145.08,18.64964886]
[1750885293455,5.15476871,145.1,145.08,18.64964886]
[1750885293635,17.74604512,145.12,145.08,18.64964886]
[1750885293636,5.15476871,145.09,145.08,18.64964886]
[1750885294041,5.15476871,145.09,145.08,25.54239768]
[1750885294360,6.4,145.12,145.08,32.06476556]
[1750885294555,5.15473791,145.11,145.08,32.06476556]
[1750885294731,5.15473791,145.1,145.08,32.06476556]
[1750885294931,6.4,145.12,145.08,32.06476556]
[1750885295132,5.15449729,145.11,145.08,32.06476556]
[1750885295332,6.4,145.12,145.08,32.06476556]
[1750885295542,5.15344792,145.11,145.08,32.06476556]
[1750885295759,6.4,145.12,145.08,25.54239768]
[1750885295962,5.15344821,145.11,145.08,25.54239768]
[1750885296260,5.15344821,145.1,145.08,18.64964886]
[1750885296565,17.74598646,145.12,145.08,18.64964886]
[1750885296853,5.15311669,145.11,145.08,18.64964886]
[1750885297055,5.15311669,145.1,145.08,18.64964886]
[1750885297234,17.74598646,145.12,145.08,18.64964886]
[1750885297550,5.15304046,145.11,145.08,25.54239557]
[1750885297751,5.15304046,145.1,145.08,25.54239557]
[1750885297941,12.92236788,145.12,145.08,25.54239557]
[1750885298151,5.15258872,145.11,145.08,25.54239557]
[1750885298340,5.15258872,145.1,145.08,25.54239557]
[1750885298541,12.92236788,145.12,145.08,25.54239557]
[1750885298728,5.15219242,145.11,145.08,25.54239557]
[1750885298926,5.15219242,145.1,145.08,25.54239557]
[1750885299129,12.92236788,145.12,145.08,25.54239557]
[1750885299356,5.15216238,145.11,145.08,25.54239557]
[1750885299540,5.15216238,145.1,145.08,25.54239557]
[1750885299850,12.92236788,145.12,145.08,25.54239557]
[1750885300039,5.15169849,145.11,145.08,25.54239557]
[1750885300229,5.15169849,145.1,145.08,25.54239557]
[1750885300432,12.92236788,145.12,145.08,25.54239557]
[1750885300632,5.15127302,145.11,145.08,25.54239557]
[1750885300831,12.92236788,145.12,145.08,25.54239557]
[1750885301053,5.15103565,145.11,145.08,25.54239557]
[1750885301251,12.92236788,145.12,145.08,25.54239557]
[1750885301455,5.15037836,145.11,145.08,25.54239557]
[1750885301664,5.15037836,145.1,145.08,25.54239557]
[1750885301961,17.74596307,145.12,145.08,25.54239557]
[1750885302148,5.15051624,145.11,145.08,25.54239557]
[1750885302339,5.15051624,145.1,145.08,25.54239557]
[1750885302537,17.74596307,145.12,145.08,25.54239557]
[1750885302737,5.1502662,145.11,145.08,25.54239557]
[1750885302937,5.1502662,145.1,145.08,25.54239557]
[1750885303148,17.74596307,145.12,145.08,25.54239557]
[1750885303330,5.15027511,145.11,145.08,25.54239557]
[1750885303654,12.92236788,145.12,145.08,25.54239557]
[1750885303836,5.1497825,145.11,145.08,25.54239557]
[1750885304036,12.92236788,145.12,145.08,25.54239557]
[1750885304256,5.14977756,145.11,145.08,25.54239557]
[1750885304456,12.92236788,145.12,145.08,25.54239557]
[1750885304659,5.14932478,145.11,145.08,25.54239557]
[1750885304858,12.92236788,145.12,145.08,25.54239557]
[1750885305058,5.14932972,145.11,145.08,25.54239557]
[1750885305258,12.92236788,145.12,145.08,25.54239557]
[1750885305465,5.14932972,145.11,145.08,25.54239557]
[1750885305646,6.4,145.12,145.08,25.54239557]
[1750885305845,5.14907342,145.11,145.08,25.54239557]
[1750885306048,12.92236788,145.12,145.08,25.54239557]
[1750885306248,5.14907342,145.11,145.08,25.54239557]
[1750885306559,10.57623562,145.12,145.08,25.54239557]
[1750885306754,5.14865064,145.11,145.08,25.54239557]
[1750885306942,15.3998661,145.12,145.08,25.54239557]
[1750885307143,5.14865133,145.11,145.08,25.54239557]
[1750885307343,15.3998661,145.12,145.08,25.54239557]
[1750885307539,5.14817381,145.11,145.08,25.54239557]
[1750885307744,15.3998661,145.12,145.08,25.54239557]
[1750885307944,5.14817381,145.11,145.08,25.54239557]
[1750885308160,10.57623562,145.12,145.08,25.54239557]
[1750885308362,5.14817381,145.11,145.08,29.71863119]
[1750885308570,6.4,145.12,145.08,29.71863119]
[1750885308773,5.14770788,145.11,145.08,29.71863119]
[1750885308953,6.4,145.12,145.08,29.71863119]
[1750885309969,5.14734121,145.11,145.08,29.71863119]
[1750885310283,6.4,145.12,145.08,29.71863119]
[1750885310456,5.14735582,145.11,145.1,18.64964886]
[1750885310854,4.17623562,145.13,145.1,18.64964886]
[1750885311053,5.14710215,145.12,145.1,18.64964886]
[1750885311258,4.17623562,145.13,145.1,18.64964886]
[1750885311458,9.32317197,145.12,145.08,8.47972385]
[1750885311655,9.32317197,145.12,145.04,0.02]
[1750885311656,26.0,145.1,145.04,0.02]
[1750885311863,4.17623562,145.07,145.04,0.02]
[1750885312045,4.17623562,145.08,145.04,18.66964886]
[1750885312246,4.17623562,145.11,145.07,4.17623562]
[1750885312456,5.14804357,145.1,145.07,18.64964886]
[1750885312792,30.82343158,145.13,145.04,0.02]
[1750885312793,9.32446414,145.09,145.04,0.02]
[1750885312955,49.29954584,145.13,145.04,0.02]
[1750885312956,4.17623562,145.07,145.04,0.02]
[1750885313547,4.82558941,145.06,145.04,0.02]
[1750885314057,9.00182503,145.06,145.04,0.02]
[1750885314368,9.46901677,145.05,145.04,0.02]
[1750885315659,14.15277729,145.05,145.04,0.02]
[1750885316379,16.51060109,145.05,145.04,0.02]
[1750885319474,11.35998151,145.05,145.04,0.02]
[1750885319772,16.51060109,145.05,145.04,0.02]
[1750885321474,11.35998151,145.05,145.04,0.02]
[1750885321665,16.51060109,145.05,145.04,0.02]
[1750885321853,11.35998151,145.05,145.04,0.02]
[1750885322053,16.51060109,145.05,145.04,0.02]
[1750885322279,11.35998151,145.05,145.04,0.02]
[1750885322461,16.51060109,145.05,145.04,0.02]
[1750885322661,11.35998151,145.05,145.04,0.02]
[1750885322860,16.51060109,145.05,145.04,0.02]
[1750885323077,11.35998151,145.05,145.04,0.02]
[1750885323274,11.35975317,145.06,145.04,0.02]
[1750885323473,6.53405942,145.06,145.04,0.02]
[1750885324185,11.35946874,145.07,145.04,0.02]
[1750885327821,6.53405942,145.05,145.04,0.02]
[1750885330286,6.53405942,145.06,145.04,0.02]
[1750885330476,4.82573469,145.06,145.04,0.02]
[1750885331063,16.49692015,145.07,145.04,0.02]
[1750885331267,5.13744441,145.07,145.04,0.02]
[1750885331487,9.96248636,145.08,145.04,6.55405942]
[1750885331692,11.35910137,145.08,145.04,0.02]
[1750885331879,6.53405942,145.07,145.04,0.02]
[1750885332586,11.35943536,145.07,145.04,0.02]
[1750885333977,4.82537594,145.07,145.04,0.02]
[1750885334173,4.82517607,145.08,145.04,0.02]
[1750885334573,11.35923549,145.08,145.04,0.02]
[1750885335569,4.82517607,145.08,145.04,0.02]
[1750885335879,11.35923549,145.08,145.04,0.02]
[1750885336280,11.3594784,145.07,145.04,0.02]
[1750885337570,4.82492417,145.08,145.04,0.02]
[1750885337774,6.53405942,145.07,145.04,18.66964886]
[1750885339681,5.13744441,145.09,145.06,18.64964886]
[1750885339871,5.13744441,145.12,145.08,6.53405942]
[1750885340075,5.13744441,145.12,145.09,6.53405942]
[1750885340275,5.13744441,145.12,145.08,6.53405942]
[1750885340693,11.71150383,145.13,145.08,6.53405942]
[1750885341602,11.71150383,145.13,145.08,13.42671643]
[1750885341802,16.53487874,145.13,145.08,13.42671643]
[1750885342304,16.53487874,145.13,145.09,6.53405942]
[1750885342599,0.04,145.13,145.11,6.53405942]
[1750885342822,0.04,145.13,145.1,18.64964886]
[1750885343008,0.04,145.13,145.1,25.18370828]
[1750885343991,0.04,145.13,145.1,32.075432]
[1750885345385,0.04,145.13,145.09,6.89201797]
[1750885345587,0.04,145.13,145.1,6.53405942]
[1750885347513,0.04,145.13,145.1,13.42570776]
[1750885348228,0.04,145.13,145.1,6.89164834]
[1750885348405,0.04,145.13,145.12,25.18370828]
[1750885349087,0.04,145.13,145.12,32.07455723]
[1750885350814,0.04,145.13,145.12,25.54049781]
[1750885351005,0.04,145.13,145.12,32.07455723]
[1750885351207,1.5186675,145.14,145.13,52.62464886]
[1750885351394,1.5186675,145.14,145.13,59.44303142]
[1750885352195,1.5186675,145.14,145.13,66.33340556]
[1750885355820,1.5186675,145.14,145.13,69.74997591]
[1750885357719,1.5186675,145.14,145.13,69.89213748]
[1750885359329,1.5186675,145.14,145.13,98.37213748]
[1750885359828,9.29789431,145.2,145.18,20.447272]
[1750885359998,9.25789431,145.2,145.19,58.14425241]
[1750885360201,9.25789431,145.2,145.19,51.61019299]
[1750885360699,9.25789431,145.2,145.19,51.46803142]
[1750885360897,9.25789431,145.2,145.19,51.96803142]
[1750885361118,9.25789431,145.2,145.19,45.14964886]
[1750885361418,9.25789431,145.2,145.19,7.03405942]
[1750885361596,9.25789431,145.2,145.19,6.53405942]
[1750885362304,9.25789431,145.2,145.18,25.18370828]
[1750885362910,9.25789431,145.2,145.18,18.64964886]
[1750885363104,9.25789431,145.2,145.18,25.53751412]
[1750885363311,9.25789431,145.2,145.19,6.53405942]
[1750885364199,9.25789431,145.2,145.19,13.4215861]
[1750885365930,9.25789431,145.2,145.19,6.88752668]
[1750885366127,9.25789431,145.2,145.19,13.4215861]
[1750885367002,9.25789431,145.2,145.19,7.17184982]
[1750885367201,0.04,145.26,145.19,13.70590924]
[1750885367405,0.04,145.26,145.23,18.64964886]
[1750885367614,11.39307538,145.26,145.22,18.64964886]
[1750885367907,0.04,145.26,145.22,25.18370828]
[1750885368107,0.04,145.26,145.23,6.53405942]
[1750885370319,0.04,145.26,145.22,6.53405942]
[1750885370531,6.57405942,145.26,145.21,25.18370828]
[1750885370832,6.53405942,145.25,145.21,18.64964886]
[1750885371436,6.53405942,145.24,145.21,18.64964886]
[1750885371819,6.53405942,145.23,145.18,6.88781386]
[1750885372137,6.53405942,145.23,145.17,31.20642253]
[1750885372138,6.53405942,145.19,145.17,24.96642253]
[1750885372315,6.53405942,145.2,145.17,24.96642253]
[1750885372511,6.53405942,145.21,145.18,18.64964886]
[1750885372718,1.5946,145.22,145.18,25.18370828]
[1750885373030,1.5946,145.22,145.19,6.53405942]
[1750885373629,11.35366612,145.25,145.2,25.18370828]
[1750885374338,11.35366612,145.25,145.2,32.07051457]
[1750885374523,11.35366612,145.25,145.2,25.18370828]
[1750885374714,19.2168011,145.26,145.22,6.53405942]
[1750885374924,19.2168011,145.26,145.23,6.53405942]
[1750885374925,1.5926,145.26,145.23,6.53405942]
[1750885375129,0.04,145.26,145.23,6.53405942]
[1750885375847,0.04,145.26,145.24,6.53405942]
[1750885376614,0.04,145.26,145.24,18.64964886]
[1750885376819,0.04,145.26,145.24,25.18370828]
[1750885377917,0.04,145.26,145.25,18.64964886]
[1750885378144,0.04,145.26,145.25,25.18370828]
[1750885378451,0.04,145.26,145.25,32.352713]
[1750885378810,0.04,145.26,145.25,32.06838986]
[1750885379021,0.04,145.26,145.25,25.18370828]
[1750885379823,0.04,145.26,145.25,32.06838986]
[1750885380439,0.04,145.26,145.24,6.53405942]
[1750885380750,0.04,145.26,145.24,18.64964886]
[1750885380918,0.04,145.26,145.25,6.53405942]
[1750885381119,0.04,145.26,145.25,25.18370828]
[1750885382020,0.04,145.26,145.25,25.46803142]
[1750885382742,0.04,145.26,145.25,32.352713]
[1750885383526,0.04,145.26,145.25,25.53433044]
[1750885383823,0.04,145.26,145.25,32.06838986]
[1750885384017,0.04,145.26,145.25,25.18370828]
[1750885384219,0.04,145.26,145.25,32.06838986]
[1750885386926,0.04,145.26,145.25,32.352713]
[1750885390924,0.04,145.26,145.25,25.81865358]
[1750885391123,0.04,145.26,145.25,32.352713]
[1750885395052,0.04,145.26,145.25,25.81865358]
[1750885395251,0.04,145.26,145.25,18.64964886]
[1750885395439,0.04,145.26,145.2,26.0]
[1750885395640,6.53405942,145.25,145.22,18.64964886]
[1750885395852,0.04,145.26,145.22,18.64964886]
[1750885396053,6.53405942,145.25,145.22,18.64964886]
[1750885396247,6.57405942,145.26,145.22,18.64964886]
[1750885397058,11.3931291,145.26,145.22,18.64964886]
[1750885397565,4.85906968,145.26,145.22,18.64964886]
[1750885397860,11.3931291,145.26,145.22,25.18370828]
[1750885398444,4.85906968,145.26,145.22,25.18370828]
[1750885398656,16.51724163,145.26,145.22,25.18370828]
[1750885398858,11.3931291,145.26,145.22,25.18370828]
[1750885399056,5.16411253,145.26,145.25,6.53405942]
[1750885399275,0.04,145.26,145.25,25.18370828]
[1750885399581,6.53405942,145.36,145.29,18.64964886]
[1750885399750,6.33850824,145.37,145.33,18.64964886]
[1750885399944,8.05695942,145.37,145.33,18.64964886]
[1750885400336,1.5229,145.37,145.33,18.64964886]
[1750885400566,8.05695942,145.37,145.33,18.64964886]
[1750885400766,6.081,145.38,145.33,25.53053336]
[1750885400936,17.43012177,145.38,145.33,18.64964886]
[1750885401140,4.81430536,145.4,145.33,18.64964886]
[1750885401468,26.0,145.38,145.35,18.64964886]
[1750885402269,6.33695991,145.41,145.35,6.53405942]
[1750885402470,26.0,145.38,145.35,6.53405942]
[1750885402758,37.34909212,145.38,145.3,3.38727203]
[1750885402935,6.53405942,145.37,145.33,18.64964886]
[1750885403750,0.04,145.32,145.31,18.64964886]
[1750885404140,0.04,145.32,145.29,6.53405942]
[1750885404346,0.04,145.32,145.27,6.88357087]
[1750885404347,6.53405942,145.31,145.28,18.64964886]
[1750885404551,6.53405942,145.31,145.27,6.53405942]
[1750885405071,6.53405942,145.31,145.28,18.64964886]
[1750885405372,11.39107735,145.32,145.28,18.64964886]
[1750885405549,6.53405942,145.31,145.28,18.64964886]
[1750885405864,26.0,145.3,145.25,18.64964886]
[1750885406062,6.53405942,145.29,145.25,18.64964886]
[1750885406249,5.12911868,145.3,145.25,18.64964886]
[1750885406561,6.53405942,145.3,145.27,18.64964886]
[1750885406766,6.53405942,145.29,145.25,25.18370828]
[1750885406951,6.53405942,145.29,145.25,32.06828848]
[1750885407151,11.6631781,145.3,145.25,32.06828848]
[1750885407356,6.53405942,145.3,145.25,32.06828848]
[1750885408456,11.66308548,145.3,145.25,32.06828848]
[1750885408769,11.66308548,145.31,145.27,18.64964886]
[1750885409058,4.85697271,145.32,145.25,32.06828848]
[1750885409258,6.53405942,145.3,145.25,32.06828848]
[1750885409771,11.66374498,145.31,145.27,25.53338259]
[1750885409947,11.66366168,145.31,145.27,32.06744201]
[1750885410355,5.12960226,145.31,145.27,32.06744201]
[1750885411164,0.04,145.32,145.27,42.74271693]
[1750885411339,0.04,145.32,145.28,18.64964886]
[1750885411543,0.04,145.32,145.29,6.53405942]
[1750885411847,0.04,145.32,145.3,25.53167116]
[1750885412050,0.04,145.32,145.3,32.06573058]
[1750885412671,0.04,145.32,145.3,18.64964886]
[1750885413446,0.04,145.32,145.28,13.41713266]
[1750885413772,6.53405942,145.31,145.28,18.64964886]
[1750885414576,5.16888577,145.32,145.28,25.5328551]
[1750885414753,0.04,145.32,145.3,6.53405942]
[1750885414953,0.04,145.32,145.31,51.87189216]
[1750885415156,0.04,145.32,145.31,52.29837687]
[1750885416068,0.04,145.32,145.31,59.18021569]
[1750885416249,5.12640453,145.39,145.32,19.07613357]
[1750885416452,16.47423166,145.42,145.39,18.64964886]
[1750885416666,5.12640453,145.42,145.41,18.64964886]
[1750885416853,0.44,145.44,145.41,25.18370828]
[1750885417053,0.44,145.44,145.41,18.64964886]
[1750885417951,5.2530299,145.44,145.41,18.64964886]
[1750885418151,6.29206419,145.43,145.36,7.56729854]
[1750885418366,17.12267602,145.43,145.39,18.64964886]
[1750885418559,5.12373351,145.42,145.39,18.64964886]
[1750885418864,5.12373351,145.41,145.39,18.64964886]
[1750885419068,5.12373351,145.42,145.41,18.64964886]
[1750885419254,6.60240101,145.43,145.41,18.64964886]
[1750885419457,5.12373351,145.42,145.39,10.83061183]
[1750885419670,1.4786675,145.43,145.41,18.64964886]
[1750885420242,1.4786675,145.43,145.39,6.87776499]
[1750885420445,1.4786675,145.43,145.39,29.48026069]
[1750885420976,1.4786675,145.43,145.42,29.48026069]
[1750885421859,1.4786675,145.43,145.42,18.64964886]
[1750885422062,1.4786675,145.43,145.42,36.35689389]
[1750885422266,1.4786675,145.43,145.42,25.52628206]
[1750885422456,1.4786675,145.43,145.42,36.35689389]
[1750885423261,1.4786675,145.43,145.42,18.64964886]
[1750885423463,1.4786675,145.43,145.42,25.52628206]
[1750885423660,1.4786675,145.43,145.42,36.35689389]
[1750885425559,1.4786675,145.43,145.42,25.52628206]
[1750885425759,1.4786675,145.43,145.42,18.64964886]
[1750885426178,1.4786675,145.43,145.42,25.52628206]
[1750885426354,0.44,145.44,145.43,18.79181043]
[1750885426559,11.18364908,145.55,145.44,0.14216157]
[1750885426760,6.3742,145.55,145.5,10.83061183]
[1750885427060,22.0141926,145.55,145.51,18.64964886]
[1750885427283,6.3742,145.55,145.51,18.64964886]
[1750885427576,4.80835279,145.58,145.47,18.64964886]
[1750885427754,4.80835279,145.58,145.49,6.87332462]
[1750885427956,148.6,145.62,145.51,1.541]
[1750885428258,15.63708321,145.64,145.59,10.83061183]
[1750885428658,4.80647138,145.64,145.59,10.83061183]
[1750885428859,10.83061183,145.64,145.59,10.83061183]
[1750885429080,10.83061183,145.61,145.56,10.83061183]
[1750885429282,11.52068308,145.65,145.57,18.64964886]
[1750885429482,10.83061183,145.62,145.53,10.93040182]
[1750885429687,32.450901,145.65,145.59,18.64964886]
[1750885429885,10.83061183,145.61,145.57,18.64964886]
[1750885430395,6.450901,145.65,145.53,10.93040182]
[1750885430396,10.83061183,145.6,145.54,18.64964886]
[1750885430587,10.83061183,145.6,145.56,18.64964886]
[1750885430789,10.83061183,145.58,145.5,0.68728522]
[1750885430972,10.83061183,145.52,145.45,6.87521485]
[1750885431175,26.0,145.56,145.48,10.83061183]
[1750885431374,10.83061183,145.54,145.5,10.83061183]
[1750885431572,10.83061183,145.52,145.47,10.83061183]
[1750885431885,4.81069005,145.51,145.43,18.98498953]
[1750885432091,10.83061183,145.5,145.46,10.83061183]
[1750885432290,12.02359025,145.55,145.43,18.98498953]
[1750885432291,10.83061183,145.55,145.49,10.83061183]
[1750885432470,10.83061183,145.55,145.51,18.64964886]
[1750885432665,4.80845571,145.58,145.53,18.64964886]
[1750885432914,4.80845571,145.58,145.53,29.48026069]
[1750885432915,10.83061183,145.58,145.53,29.48026069]
[1750885433391,6.3436,145.6,145.53,10.83061183]
[1750885433590,10.83061183,145.59,145.55,18.64964886]
[1750885434170,11.15137812,145.6,145.55,25.52007788]
[1750885434365,10.83061183,145.59,145.55,18.64964886]
[1750885434594,10.83061183,145.59,145.55,29.48026069]
[1750885435664,10.83061183,145.59,145.54,29.48026069]
[1750885435884,10.83061183,145.59,145.55,6.87049124]
[1750885436977,10.83061183,145.56,145.5,25.52250109]
[1750885437294,10.83061183,145.57,145.53,18.64964886]
[1750885437471,4.80811756,145.59,145.53,18.64964886]
[1750885437662,4.80811756,145.59,145.52,10.83061183]
[1750885437663,11.15141839,145.6,145.55,18.64964886]
[1750885437864,10.83061183,145.59,145.55,18.64964886]
[1750885438176,11.15132196,145.6,145.55,25.52009487]
[1750885438370,10.83061183,145.58,145.55,25.52009487]
[1750885438572,10.83061183,145.58,145.55,18.64964886]
[1750885439991,11.15140723,145.6,145.55,18.64964886]
[1750885440193,11.15140723,145.6,145.55,6.87047806]
[1750885440194,10.83061183,145.58,145.55,6.87047806]
[1750885440423,10.83061183,145.58,145.54,25.52041362]
[1750885440881,11.15140723,145.6,145.54,25.52041362]
[1750885441080,10.83061183,145.58,145.54,25.52041362]
[1750885441990,10.83061183,145.57,145.54,18.64964886]
[1750885442304,4.80838157,145.58,145.51,25.52202876]
[1750885442469,10.83061183,145.55,145.51,25.52202876]
[1750885443090,10.83061183,145.53,145.5,18.64964886]
[1750885443665,15.64063127,145.53,145.46,37.16308012]
[1750885443873,10.83061183,145.51,145.47,18.64964886]
[1750885444086,4.81001944,145.53,145.47,18.64964886]
[1750885444290,10.83061183,145.51,145.47,18.64964886]
[1750885444488,4.81001944,145.53,145.47,25.52391846]
[1750885444690,10.83061183,145.51,145.47,25.52391846]
[1750885445375,10.83061183,145.52,145.47,36.35453029]
[1750885445580,10.83061183,145.51,145.47,36.35453029]
[1750885446880,6.1447,145.52,145.46,3.43218012]
[1750885447087,27.519,145.54,145.47,18.64964886]
[1750885447384,10.83061183,145.52,145.47,29.48026069]
[1750885447782,32.32880748,145.54,145.47,36.35411671]
[1750885447980,10.83061183,145.52,145.47,25.52350488]
[1750885448191,32.32880748,145.54,145.47,18.64964886]
[1750885448192,10.83061183,145.5,145.47,18.64964886]
[1750885448405,10.83061183,145.48,145.46,18.64964886]
[1750885448773,10.83061183,145.48,145.45,18.64964886]
[1750885448973,10.83061183,145.49,145.45,18.64964886]
[1750885449589,10.83061183,145.48,145.45,18.64964886]
[1750885451800,10.83061183,145.48,145.45,25.5248425]
[1750885451999,10.83061183,145.48,145.45,25.52483957]
[1750885452201,10.83061183,145.48,145.45,18.64964886]
[1750885452388,10.83061183,145.48,145.45,25.52472886]
[1750885452901,4.81033534,145.52,145.46,29.48026069]
[1750885453091,10.83061183,145.51,145.46,29.48026069]
[1750885453292,10.83061183,145.51,145.47,10.83061183]
[1750885453897,10.83061183,145.49,145.43,18.64964886]
[1750885454077,10.83061183,145.49,145.45,10.83061183]
[1750885454785,10.83061183,145.49,145.43,18.64964886]
[1750885455004,10.83061183,145.49,145.45,25.52483014]
[1750885455186,10.83061183,145.5,145.45,36.35544197]
[1750885458689,10.83061183,145.5,145.45,25.52483014]
[1750885458889,10.83061183,145.5,145.45,36.35544197]
[1750885459611,15.87735765,145.5,145.45,36.35544197]
[1750885459791,10.83061183,145.49,145.45,36.35544197]
[1750885460386,10.83061183,145.49,145.45,25.52483014]
[1750885462615,10.83061183,145.48,145.43,6.87616035]
[1750885462826,10.83061183,145.46,145.43,6.87616035]
[1750885463115,10.83061183,145.46,145.41,17.70754055]
[1750885463300,10.83061183,145.43,145.4,18.64964886]
[1750885463692,10.83061183,145.43,145.39,18.64964886]
[1750885464202,10.83061183,145.44,145.39,29.48026069]
[1750885464403,10.83061183,145.43,145.39,25.52754048]
[1750885465199,10.83061183,145.42,145.39,6.87789162]
[1750885465418,5.10460822,145.44,145.39,18.64964886]
[1750885465592,10.83061183,145.42,145.39,18.64964886]
[1750885466819,10.83061183,145.42,145.39,25.52768371]
[1750885466998,10.83061183,145.42,145.39,6.87803485]
[1750885467195,4.81277563,145.45,145.39,6.87803485]
[1750885467394,10.83061183,145.43,145.39,17.70864668]
[1750885468701,5.10558388,145.44,145.4,10.83061183]
[1750885468903,10.83061183,145.45,145.41,18.64964886]
[1750885469111,10.83061183,145.45,145.4,18.64964886]
[1750885469315,5.10558388,145.46,145.4,29.48026069]
[1750885469621,10.83061183,145.44,145.4,29.48026069]
[1750885469821,10.83061183,145.44,145.4,18.64964886]
[1750885470214,9.91790984,145.46,145.41,6.87710611]
[1750885470215,4.81232596,145.46,145.41,6.87710611]
[1750885470441,10.83061183,145.44,145.41,6.87710611]
[1750885470928,4.81232596,145.46,145.38,0.02]
[1750885470929,10.83061183,145.42,145.38,0.02]
[1750885471131,10.83061183,145.41,145.38,0.02]
[1750885471428,10.83061183,145.4,145.38,0.02]
[1750885471593,6.4548,145.44,145.38,0.02]
[1750885471793,10.83061183,145.41,145.38,0.02]
[1750885472210,10.83061183,145.4,145.38,0.02]
[1750885472796,10.83061183,145.41,145.38,0.02]
[1750885475016,15.64464384,145.41,145.38,0.02]
[1750885475317,10.83061183,145.41,145.38,0.02]
[1750885475711,15.6446097,145.41,145.38,0.02]
[1750885476249,10.83061183,145.39,145.38,0.02]
[1750885476826,11.11493497,145.39,145.38,0.02]
[1750885477004,37.11493497,145.37,145.36,0.02]
[1750885477205,0.42648471,145.36,145.33,0.02]
[1750885477413,37.25709654,145.34,145.33,0.02]
[1750885477612,44.99709654,145.34,145.33,0.02]
[1750885477812,6.6195,145.32,145.25,30.0]
[1750885478126,10.83061183,145.26,145.25,30.0]
[1750885478321,10.83061183,145.26,145.22,18.64964886]
[1750885478526,26.0,145.29,145.21,24.10273332]
[1750885478709,10.83061183,145.27,145.21,24.10273332]
[1750885479034,10.83061183,145.27,145.22,29.48026069]
[1750885479814,10.83061183,145.27,145.22,36.366095]
[1750885480111,10.83061183,145.26,145.22,36.366095]
[1750885480436,10.83061183,145.25,145.22,18.64964886]
[1750885480740,10.83061183,145.23,145.2,0.02]
[1750885480919,10.83061183,145.21,145.2,0.02]
[1750885481524,0.42648471,145.24,145.2,0.02]
[1750885481712,10.83061183,145.21,145.2,0.02]
[1750885481911,41.93553961,145.21,145.2,0.02]
[1750885482335,36.83061183,145.21,145.2,0.02]
[1750885482540,10.83061183,145.21,145.2,0.02]
[1750885482825,15.93553961,145.21,145.2,0.02]
[1750885483213,5.10492778,145.21,145.2,0.02]
[1750885483415,16.07770118,145.21,145.2,0.02]
[1750885483619,26.0,145.22,145.2,0.02]
[1750885483825,36.83061183,145.21,145.2,0.02]
[1750885484015,41.65121647,145.21,145.2,0.02]
[1750885484616,41.93553961,145.21,145.2,0.02]
[1750885484909,83.56831301,145.21,145.2,0.02]
[1750885485812,61.90708935,145.21,145.2,0.02]
[1750885486012,72.73770118,145.21,145.2,0.02]
[1750885486627,67.49061183,145.21,145.2,0.02]
[1750885487013,30.66,145.21,145.2,0.02]
[1750885487220,41.49061183,145.21,145.2,0.02]
[1750885487816,56.66,145.21,145.2,0.02]
[1750885488022,67.49061183,145.21,145.2,0.02]
[1750885488424,72.73770118,145.21,145.2,0.02]
[1750885488631,46.73770118,145.21,145.2,0.02]
[1750885489713,57.56831301,145.21,145.2,0.02]
[1750885490049,46.73770118,145.21,145.2,0.02]
[1750885497542,57.56831301,145.21,145.2,0.02]
[1750885499427,46.73770118,145.21,145.2,0.02]
[1750885500750,58.94873782,145.25,145.2,0.02]
[1750885500751,6.2017,145.25,145.2,0.02]
[1750885500927,10.83061183,145.24,145.2,18.66964886]
[1750885501126,4.81905793,145.26,145.2,29.50026069]
[1750885501127,10.83061183,145.25,145.2,29.50026069]
[1750885501328,10.83061183,145.26,145.22,18.64964886]
[1750885501522,10.83061183,145.26,145.2,0.02]
[1750885501523,10.83061183,145.23,145.2,0.02]
[1750885501723,37.11493497,145.21,145.2,0.02]